[Event "18th Brasschaat Open 2018"]
[Site "Brasschaat"]
[Date "2018.08.24"]
[Round "7"]
[White "Butzen, Robin"]
[Black "Kazarian, Anna-Maja"]
[Result "0-1"]
[ECO "D35"]
[WhiteElo "1899"]
[BlackElo "2183"]
[Annotator "NA"]
[PlyCount "108"]
[EventDate "2018.08.18"]
[EventType "swiss"]
[EventCountry "BEL"]
[SourceTitle "playchess.com"]
[Source "ChessBase"]
[SourceQuality "1"]
[TimeControl "40/5400+30:1800+30"]

1. c4 {[%emt 0:00:00]} Nf6 {[%emt 0:00:00]} 2. Nc3 {[%emt 0:01:15]} e6 {[%emt 0:00:21]} 3. d4 {[%emt 0:00:11]} Bb4 {[%emt 0:00:07]} 4. Qc2 {[%emt 0:00:03]} d5 {[%emt 0:14:55]} 5. cxd5 {[%emt 0:04:12]} exd5 {[%emt 0:00:28]} 6. Bg5 {[%emt 0:00:20]} c6 {[%emt 0:03:44]} 7. e3 {[%emt 0:00:11]} Nbd7 {[%emt 0:04:12]} 8. Bd3 {[%emt 0:00:12] D35: Queen's Gambit Declined: Exchange Variation} Nf8 {[%emt 0:02:05]} (8... Qe7 9. Nge2 h6 10. Bh4 Nf8 11. O-O Bd6 12. Bxf6 Qxf6 13. e4 dxe4 14. Nxe4 Qd8 15. d5 cxd5 {1-0 (27) So,W (2678)-Brooks,M (2430) Saint Louis 2012}) 9. Nge2 {[%emt 0:00:48]} Ne6 {[%emt 0:01:24]} 10. Bh4 {[%emt 0:00:54]} g6 {[%emt 0:08:58]} 11. O-O {[%emt 0:02:08]} O-O {[%emt 0:00:24]} 12. f3 {[%emt 0:01:46]} Be7 {[%emt 0:02:17]} 13. Rad1 {[%emt 0:04:14]} b5 $146 {[%emt 0:07:12]} ({Predecessor:} 13... b6 14. h3 Bb7 15. Bf2 c5 16. dxc5 bxc5 {½-½ (32) Remlinger,L (2455)-Frias Pablaza,V (2480) New York 1994}) 14. Kh1 {[%emt 0:10:21]} a5 {[%emt 0:08:49]} 15. e4 {[%emt 0:17:30]} b4 {[%emt 0:01:27]} 16. Bxf6 {[%emt 0:04:45]} Bxf6 {[%emt 0:00:06]} 17. exd5 {[%emt 0:00:14]} cxd5 {[%emt 0:03:42]} 18. Na4 {[%emt 0:21:28]} Bd7 {[%emt 0:10:04]} 19. Nc5 {[%emt 0:07:25]} Rc8 {[%emt 0:00:23]} 20. Nxe6 {[%emt 0:05:15]} Bxe6 {[%emt 0:00:24]} 21. Qd2 {[%emt 0:00:41]} Qd7 {[%emt 0:05:00]} 22. Rc1 {[%emt 0:02:12]} Bf5 {[%emt 0:03:16]} 23. Ba6 {[%emt 0:01:28]} Rc6 {[%emt 0:02:23]} 24. Bd3 {[%emt 0:06:04]} Bxd3 {[%emt 0:00:06]} 25. Qxd3 {[%emt 0:00:06]} Rfc8 {[%emt 0:00:34]} 26. g3 $17 {[%emt 0:01:35]} Rxc1 {[%emt 0:08:32]} 27. Rxc1 {[%emt 0:00:07]} Rxc1+ {[%emt 0:00:03]} 28. Nxc1 {[%emt 0:00:15]} Qc6 {[%emt 0:00:30]} 29. Nb3 {[%emt 0:05:58]} Qa4 {[%emt 0:06:20]} 30. Nc1 {[%emt 0:01:37]} b3 {[%emt 0:01:02]} 31. axb3 {[%emt 0:00:33]} Qa1 {[%emt 0:00:23]} 32. Qd2 {[%emt 0:00:57]} Bxd4 {[%emt 0:01:15]} 33. Qxd4 {[%emt 0:00:33]} Qxc1+ {[%emt 0:00:04]} 34. Kg2 {[%emt 0:00:36]} Qc2+ {[%emt 0:00:05]} 35. Kh3 {[%emt 0:00:06]} Qxb3 {[%emt 0:00:11]} 36. f4 {[%emt 0:00:50]} Qc4 {[%emt 0:00:56]} 37. Qb6 {[%emt 0:00:05]} Qc8+ {[%emt 0:01:54]} 38. Kg2 {[%emt 0:00:45]} a4 {[%emt 0:01:18]} 39. Qb5 {[%emt 0:00:38]} Qc2+ {[%emt 0:00:19]} 40. Kh3 {[%emt 0:00:06]} Qf5+ {[%emt 0:01:26]} 41. Kg2 {[%emt 0:30:07]} Qe4+ {[%emt 0:30:06]} 42. Kf2 {[%emt 0:01:20]} Kg7 {[%emt 0:01:06]} 43. h4 {[%emt 0:00:38]} h5 {[%emt 0:00:18]} 44. Qb6 {[%emt 0:00:42]} d4 {[%emt 0:00:46]} 45. Qb8 {[%emt 0:00:11]} Qe3+ {[%emt 0:01:08]} 46. Kf1 {[%emt 0:00:29]} Qf3+ {[%emt 0:01:30]} 47. Ke1 {[%emt 0:00:22]} Qxg3+ {[%emt 0:00:06]} 48. Ke2 {[%emt 0:00:06]} Qe3+ {[%emt 0:00:23]} 49. Kd1 {[%emt 0:00:09]} Qb3+ {[%emt 0:00:00]} 50. Qxb3 {[%emt 0:00:00]} axb3 {[%emt 0:00:00]} 51. Kd2 {[%emt 0:00:00]} Kf6 {[%emt 0:00:00]} 52. Kd3 {[%emt 0:00:00]} Kf5 {[%emt 0:00:00]} 53. Kxd4 {[%emt 0:00:00]} Kxf4 {[%emt 0:00:00]} 54. Kc3 {[%emt 0:00:00]} g5 {[%emt 0:00:00]} 0-1

[Event "18th Brasschaat Open 2018"]
[Site "Brasschaat"]
[Date "2018.08.24"]
[Round "7"]
[White "Raats, Joppe"]
[Black "Tikranian, Alik"]
[Result "0-1"]
[ECO "C50"]
[WhiteElo "1862"]
[BlackElo "2295"]
[Annotator "NA"]
[PlyCount "74"]
[EventDate "2018.08.18"]
[EventType "swiss"]
[EventCountry "BEL"]
[SourceTitle "playchess.com"]
[Source "ChessBase"]
[SourceQuality "1"]
[TimeControl "40/5400+30:1800+30"]

1. e4 {[%emt 0:00:00]} e5 {[%emt 0:00:00]} 2. Nf3 {[%emt 0:00:00]} Nc6 {[%emt 0:00:00]} 3. Bc4 {[%emt 0:00:23]} Bc5 {[%emt 0:00:01]} 4. Nc3 {[%emt 0:00:11]} Nf6 {[%emt 0:00:16]} 5. d3 {[%emt 0:00:35]} d6 {[%emt 0:00:07]} 6. O-O {[%emt 0:01:08]} Bg4 {[%emt 0:00:13]} 7. h3 {[%emt 0:01:01]} Bh5 {[%emt 0:00:08]} 8. Be3 {[%emt 0:01:30]} Qd7 {[%emt 0:02:08] C50: Hungarian Defence and Giuoco Pianissimo} (8... Bxe3 $11 {remains equal.} 9. fxe3 Na5) (8... Nd4 9. g4 Bg6 10. Bxd4 exd4 11. Ne2 d5 12. exd5 Nxd5 13. Bxd5 Qxd5 14. Nf4 Qd8 15. Re1+ Be7 16. Qe2 {1-0 (41) Shirov,A (2709)-Bailet,P (2476) Riga 2014}) 9. a3 {[%emt 0:03:43]} ({White should try} 9. Bxc5 $14 dxc5 10. Bb5) 9... a6 {[%emt 0:00:40]} 10. Kh2 $146 {[%emt 0:01:17]} (10. Bxc5 $11 dxc5 11. Bd5) ({Predecessor:} 10. Nd5 Nxd5 11. exd5 Bxf3 12. Qxf3 Nd4 13. Qd1 Ba7 14. c3 Nf5 15. Bxa7 Rxa7 16. Re1 {0-1 (30) Fu,L-Monadjem,M Caldas Novas 2011}) 10... h6 {[%emt 0:01:05]} (10... Nd4 $15) 11. Nd5 {[%emt 0:01:30]} Nxd5 {[%emt 0:04:59]} 12. exd5 {[%emt 0:02:51]} Nd4 {[%emt 0:04:46] [#]} 13. Bxd4 {[%emt 0:03:54]} (13. Nxe5 $1 $16 Bxd1 14. Nxd7 Kxd7 15. Raxd1) 13... Bxd4 {[%emt 0:00:24]} 14. c3 {[%emt 0:00:58]} Ba7 {[%emt 0:00:12]} 15. Qe2 {[%emt 0:08:25]} (15. d4 $15) 15... O-O-O {[%emt 0:02:58]} 16. b4 {[%emt 0:04:40]} f5 {[%emt 0:00:47]} 17. Qb2 {[%emt 0:05:44]} g5 {[%emt 0:07:33]} 18. a4 {[%emt 0:06:02]} Kb8 {[%emt 0:08:25]} 19. a5 {[%emt 0:01:37]} Be8 {[%emt 0:03:37]} 20. Rfb1 {[%emt 0:02:17]} g4 {[%emt 0:05:59]} 21. Ng1 {[%emt 0:15:38]} gxh3 {[%emt 0:19:48]} 22. Nxh3 {[%emt 0:02:20]} Rg8 {[%emt 0:00:28]} 23. Qe2 {[%emt 0:03:43]} (23. b5 $1 $11 axb5 24. a6) 23... Qg7 {[%emt 0:01:42]} 24. Qf1 {[%emt 0:00:17]} Bb5 {[%emt 0:06:08]} 25. Bxb5 {[%emt 0:02:35]} axb5 {[%emt 0:00:08]} 26. c4 {[%emt 0:01:42]} Bd4 {[%emt 0:01:00]} 27. Ra2 {[%emt 0:02:10]} f4 {[%emt 0:01:02]} 28. f3 {[%emt 0:01:45]} Qf7 {[%emt 0:04:11]} 29. a6 $17 {[%emt 0:07:46]} Rg3 {[%emt 0:07:23]} 30. Rb3 {[%emt 0:08:56]} Rdg8 {[%emt 0:00:33]} 31. axb7 {[%emt 0:05:33]} Kxb7 {[%emt 0:00:20]} 32. Rba3 {[%emt 0:00:26]} R8g5 {[%emt 0:05:42]} 33. Rc2 {[%emt 0:01:22]} Qg6 {[%emt 0:01:06]} 34. Raa2 {[%emt 0:00:13]} Rxh3+ {[%emt 0:00:39]} 35. gxh3 {[%emt 0:00:42]} Rg1 {[%emt 0:00:07]} 36. Rg2 {[%emt 0:00:05]} Qg3+ {[%emt 0:00:11]} 37. Rxg3 {[%emt 0:00:30]} fxg3# {[%emt 0:00:07]} 0-1

[Event "18th Brasschaat Open 2018"]
[Site "Brasschaat"]
[Date "2018.08.24"]
[Round "7"]
[White "Follesa, Enrico"]
[Black "Ismail, Tamer"]
[Result "1-0"]
[ECO "B07"]
[WhiteElo "1856"]
[BlackElo "1999"]
[Annotator "NA"]
[PlyCount "65"]
[EventDate "2018.08.18"]
[EventType "swiss"]
[EventCountry "BEL"]
[SourceTitle "playchess.com"]
[Source "ChessBase"]
[SourceQuality "1"]
[TimeControl "40/5400+30:1800+30"]

1. e4 {[%emt 0:00:00]} d6 {[%emt 0:00:00]} 2. d4 {[%emt 0:00:00]} Nf6 {[%emt 0:00:00]} 3. f3 {[%emt 0:00:00]} e5 {[%emt 0:00:00]} 4. d5 {[%emt 0:00:00]} Be7 {[%emt 0:00:00]} 5. c4 {[%emt 0:00:00]} h6 {[%emt 0:00:32]} 6. Nc3 {[%emt 0:00:30]} Nh5 {[%emt 0:04:43]} 7. g3 {[%emt 0:08:00]} Bg5 {[%emt 0:00:39]} (7... O-O $14) 8. f4 {[%emt 0:02:46]} Bxf4 {[%emt 0:00:58]} 9. Bxf4 {[%emt 0:00:56]} Nxf4 {[%emt 0:00:54]} 10. gxf4 {[%emt 0:00:01]} Qh4+ {[%emt 0:00:25]} 11. Kd2 {[%emt 0:00:48]} Qxf4+ {[%emt 0:00:28]} 12. Kc2 {[%emt 0:02:00]} Na6 {[%emt 0:02:40]} 13. a3 {[%emt 0:06:06]} Nc5 {[%emt 0:00:03]} 14. Bd3 {[%emt 0:02:01]} Bd7 {[%emt 0:15:00]} 15. Nge2 {[%emt 0:10:05]} Qf6 {[%emt 0:01:15]} 16. Rg1 {[%emt 0:04:32]} g6 {[%emt 0:00:15]} 17. b4 {[%emt 0:02:13]} Nxd3 {[%emt 0:00:03]} 18. Qxd3 {[%emt 0:00:32]} O-O-O {[%emt 0:02:36]} (18... O-O {was worth a try.} 19. Qg3 a6) 19. b5 {[%emt 0:04:31]} Qh4 {[%emt 0:00:48]} 20. a4 {[%emt 0:02:34]} Rdg8 {[%emt 0:05:05]} 21. Qe3 {[%emt 0:00:48]} Kb8 {[%emt 0:00:13]} 22. b6 {[%emt 0:01:20]} cxb6 {[%emt 0:01:23]} 23. a5 {[%emt 0:05:07]} f5 {[%emt 0:00:46]} 24. axb6 {[%emt 0:10:45]} a6 {[%emt 0:00:01]} 25. c5 {[%emt 0:00:27]} Rc8 {[%emt 0:12:05]} 26. c6 {[%emt 0:01:57]} Bxc6 {[%emt 0:00:05]} 27. dxc6 {[%emt 0:00:06]} Rxc6 {[%emt 0:00:03]} 28. Rxg6 {[%emt 0:02:03]} Qxe4+ {[%emt 0:02:28]} 29. Qxe4 {[%emt 0:00:35]} fxe4 {[%emt 0:00:01]} 30. Rb1 {[%emt 0:00:17]} d5 {[%emt 0:01:54]} 31. Rxc6 {[%emt 0:00:02]} bxc6 {[%emt 0:00:04]} 32. Na4 {[%emt 0:03:43]} c5 {[%emt 0:00:05]} 33. Nec3 $18 {[%emt 0:01:11]} 1-0

[Event "18th Brasschaat Open 2018"]
[Site "Brasschaat"]
[Date "2018.08.25"]
[Round "8"]
[White "Pirard, Natan"]
[Black "Follesa, Enrico"]
[Result "1-0"]
[ECO "B52"]
[WhiteElo "2067"]
[BlackElo "1856"]
[Annotator "NA RC"]
[PlyCount "61"]
[EventDate "2018.08.18"]
[EventType "swiss"]
[EventCountry "BEL"]
[SourceTitle "playchess.com"]
[Source "ChessBase"]
[SourceQuality "1"]
[TimeControl "40/5400+30:1800+30"]

1. e4 {[%emt 0:00:00]} c5 {[%emt 0:00:00]} 2. Nf3 {[%emt 0:00:00]} d6 {[%emt 0:00:00]} 3. Bb5+ {[%emt 0:00:00]} Bd7 {[%emt 0:00:00]} 4. Bxd7+ {[%emt 0:00:04]} Qxd7 {[%emt 0:00:00]} 5. O-O {[%emt 0:00:07]} Nc6 {[%emt 0:00:07]} 6. Qe2 {[%emt 0:00:07]} e6 {[%emt 0:01:22]} 7. Rd1 {[%emt 0:00:20]} Nf6 {[%emt 0:07:34]} 8. d4 {[%emt 0:00:26]} cxd4 {[%emt 0:00:12]} 9. Nxd4 {[%emt 0:00:02]} Be7 {[%emt 0:00:45]} 10. c4 {[%emt 0:00:32]} a6 {[%emt 0:01:21] LiveBook: 4 Games} 11. Nc3 {[%emt 0:00:39]} O-O {[%emt 0:00:25]} 12. b3 {[%emt 0:00:25]} Qc7 {[%emt 0:00:38]} 13. Bb2 {[%emt 0:02:05]} Rac8 {[%emt 0:06:03]} 14. h3 {[%emt 0:05:30]} Nd7 {[%emt 0:04:08]} 15. Qd3 $11 {[%emt 0:15:00]} Rfd8 {[%emt 0:10:19]} 16. Qg3 {[%emt 0:11:45]} Nxd4 {[%emt 0:08:06]} 17. Rxd4 {[%emt 0:00:35]} Bf8 {[%emt 0:00:10]} 18. Rad1 {[%emt 0:04:14]} b6 {[%emt 0:06:34]} 19. Ne2 {[%emt 0:24:18]} Nf6 {[%emt 0:19:11]} 20. Nc3 {[%emt 0:04:30]} Nd7 {[%emt 0:03:09]} 21. Kh1 {[%emt 0:06:13]} Qc6 {[%emt 0:07:09]} 22. Rxd6 {[%emt 0:02:08]} Qc7 {[%emt 0:14:47]} 23. R6d3 {[%emt 0:05:48]} Qb7 {[%emt 0:01:43]} 24. Qg5 {[%emt 0:04:04]} h6 {[%emt 0:01:36]} 25. Qd2 {[%emt 0:01:18]} Rc7 {[%emt 0:00:32]} 26. Na4 {[%emt 0:02:38]} b5 {[%emt 0:00:37]} 27. cxb5 {[%emt 0:00:48]} axb5 {[%emt 0:00:01]} 28. Be5 {[%emt 0:01:48]} Rc6 {[%emt 0:04:51]} 29. Nc3 {[%emt 0:01:07]} b4 {[%emt 0:00:30]} 30. Na4 {[%emt 0:00:15]} Qb5 {[%emt 0:00:51]} 31. Rxd7 {[%emt 0:00:29]} 1-0

[Event "18th Brasschaat Open 2018"]
[Site "Brasschaat"]
[Date "2018.08.25"]
[Round "8"]
[White "De Bock, Thijs"]
[Black "Dgebuadze, Marie"]
[Result "1-0"]
[ECO "B78"]
[WhiteElo "1959"]
[BlackElo "1733"]
[Annotator "NA RC"]
[PlyCount "57"]
[EventDate "2018.08.18"]
[EventType "swiss"]
[EventCountry "BEL"]
[SourceTitle "playchess.com"]
[Source "ChessBase"]
[SourceQuality "1"]
[TimeControl "40/5400+30:1800+30"]

{[%evp 8,48,35,28,57,48,60,50,57,24,25,17,37,59,32,32767,32767,32767,32767,79,85,80,97,0,8,-62,-72,-59,-68,-128,-135,-190,-199,-205,-85,-106,-87,-92,-82,-78,-76,-80,-76]} 1. e4 {[%emt 0:00:00]} c5 {[%emt 0:00:00]} 2. Nf3 {[%emt 0:00:00]} d6 {[%emt 0:00:00]} 3. d4 {[%emt 0:00:00]} cxd4 {[%emt 0:00:00]} 4. Nxd4 {[%emt 0:00:00]} Nf6 {[%emt 0:00:00]} 5. Nc3 {[%emt 0:00:00]} g6 {[%emt 0:00:00]} 6. Be3 {[%emt 0:00:00]} Bg7 {[%emt 0:00:05]} 7. f3 {[%emt 0:00:16]} Nc6 {[%emt 0:00:06]} 8. Bc4 {[%emt 0:00:04]} O-O {[%emt 0:00:27]} 9. Qd2 {[%emt 0:00:03]} Bd7 {[%emt 0:00:13]} 10. O-O-O {[%emt 0:00:05]} Rc8 {[%emt 0:00:06]} 11. Bb3 {[%emt 0:00:02]} Ne5 {[%emt 0:00:05]} 12. Kb1 {[%emt 0:00:03]} Nc4 {[%emt 0:00:37]} 13. Bxc4 $1 {[%emt 0:00:03]} Rxc4 {[%emt 0:00:08]} 14. g4 {[%emt 0:00:04]} Qa5 {[%emt 0:01:06] LiveBook: 25 Games} 15. Nd5 {[%emt 0:02:15]} (15. Nb3 $16 Qa6 {[#]} 16. e5 $1 {[%mdl 512]} Nxg4 17. fxg4) 15... Qxd2 $1 {[%emt 0:06:29]} 16. Nxe7+ {[%emt 0:00:22]} ({Better is} 16. Nxf6+ $11 Bxf6 17. Rxd2) 16... Kh8 {[%emt 0:00:07]} 17. Rxd2 {[%emt 0:00:04]} (17. Bxd2 $2 {loses.} Rxd4 18. Bc3 Rxd1+ 19. Rxd1 Re8 $19) 17... Re8 {[%emt 0:00:09]} 18. b3 {[%emt 0:01:22]} Rc3 {[%emt 0:01:06]} 19. g5 {[%emt 0:00:06]} Nxe4 {[%emt 0:02:23]} ({Resist} 19... Rxe3 20. gxf6 Bxf6 21. Nd5 $17) 20. fxe4 {[%emt 0:01:02]} Rxe7 {[%emt 0:00:20]} (20... Rxe3 $19 {is more deadly.} 21. Nd5 R3xe4) 21. Bf4 {[%emt 0:03:04]} Rxe4 {[%emt 0:03:01]} 22. Ne2 {[%emt 0:00:08]} Rc8 {[%emt 0:02:09]} 23. Bxd6 {[%emt 0:01:28]} Rce8 {[%emt 0:00:49]} 24. Nc1 $17 {[%emt 0:07:35]} Bf5 {[%emt 0:05:53]} 25. Ba3 {[%emt 0:04:51]} Rg4 {[%emt 0:02:21]} 26. Re1 {[%emt 0:00:37]} Rxe1 {[%emt 0:04:34]} 27. Rd8+ {[%emt 0:00:08]} Bf8 {[%emt 0:00:06]} 28. Bxf8 {[%emt 0:00:05]} Rge4 {[%emt 0:00:11]} 29. Be7+ {[%emt 0:00:07]} 1-0

[Event "18th Brasschaat Open 2018"]
[Site "Brasschaat"]
[Date "2018.08.25"]
[Round "8"]
[White "Naalden, Marc"]
[Black "Oudewaal, Vincent"]
[Result "0-1"]
[ECO "A45"]
[WhiteElo "1860"]
[BlackElo "2070"]
[Annotator "NA RC"]
[PlyCount "56"]
[EventDate "2018.08.18"]
[EventType "swiss"]
[EventCountry "BEL"]
[SourceTitle "playchess.com"]
[Source "ChessBase"]
[SourceQuality "1"]
[TimeControl "40/5400+30:1800+30"]

1. d4 {[%emt 0:00:00]} Nf6 {[%emt 0:00:00]} 2. Bf4 {[%emt 0:00:00]} d6 {[%emt 0:00:00]} 3. Nc3 {[%emt 0:00:07]} Nbd7 {[%emt 0:01:03]} 4. Nf3 {[%emt 0:00:43]} c5 {[%emt 0:02:20]} 5. d5 {[%emt 0:04:20] LiveBook: 9 Games} b5 {[%emt 0:03:13]} 6. Nxb5 {[%emt 0:02:06]} Qa5+ {[%emt 0:00:10]} 7. Nc3 {[%emt 0:00:10]} Rb8 {[%emt 0:00:20]} 8. Bd2 {[%emt 0:10:48]} Rxb2 {[%emt 0:08:48]} 9. e4 {[%emt 0:02:39]} g6 {[%emt 0:13:24]} 10. Nb5 $15 {[%emt 0:03:12]} ({White should try} 10. Qc1 $14 Rb7 11. a4) 10... Qa4 {[%emt 0:03:50]} 11. c4 {[%emt 0:04:11]} Qxd1+ {[%emt 0:00:11]} 12. Kxd1 {[%emt 0:01:20]} Nxe4 {[%emt 0:00:11]} 13. Nc7+ {[%emt 0:04:31]} Kd8 {[%emt 0:00:07]} 14. Ba5 {[%emt 0:00:09]} Nb6 {[%emt 0:00:37]} 15. Nb5 {[%emt 0:02:42]} Bg7 {[%emt 0:00:07]} 16. Nxa7 {[%emt 0:03:16]} Nxf2+ {[%emt 0:00:11]} 17. Ke1 {[%emt 0:01:15]} Nxh1 {[%emt 0:00:08]} 18. Rd1 {[%emt 0:05:14]} Bg4 {[%emt 0:08:40]} 19. Nb5 {[%emt 0:01:09]} Bxf3 {[%emt 0:07:00]} 20. Bxb6+ {[%emt 0:00:30]} Kd7 {[%emt 0:00:11]} 21. gxf3 {[%emt 0:00:13]} Rxa2 {[%emt 0:00:57]} 22. Rd2 {[%emt 0:09:50]} Ra6 {[%emt 0:01:03]} 23. Bg2 {[%emt 0:01:08]} Rxb6 {[%emt 0:00:09]} 24. Ra2 {[%emt 0:00:17]} Rhb8 {[%emt 0:03:27]} 25. Bf1 {[%emt 0:01:19]} Bd4 {[%emt 0:00:40]} 26. h4 {[%emt 0:04:18]} Ng3 {[%emt 0:00:16]} 27. Bh3+ {[%emt 0:00:05]} f5 {[%emt 0:00:05]} 28. Rg2 {[%emt 0:00:10]} Be5 {[%emt 0:46:52]} 0-1

[Event "18th Brasschaat Open 2018"]
[Site "Brasschaat"]
[Date "2018.08.25"]
[Round "8"]
[White "Busschots, Johan"]
[Black "Mitran, Anthony Cristian"]
[Result "1-0"]
[ECO "A42"]
[WhiteElo "1823"]
[BlackElo "2096"]
[Annotator "NA RC"]
[PlyCount "90"]
[EventDate "2018.08.18"]
[EventType "swiss"]
[EventCountry "BEL"]
[SourceTitle "playchess.com"]
[Source "ChessBase"]
[SourceQuality "1"]
[TimeControl "40/5400+30:1800+30"]

1. d4 {[%emt 0:00:00]} d6 {[%emt 0:00:00]} 2. c4 {[%emt 0:00:29]} g6 {[%emt 0:00:00]} 3. Nc3 {[%emt 0:00:28]} Bg7 {[%emt 0:00:00]} 4. e4 {[%emt 0:00:39]} Nd7 {[%emt 0:00:00]} 5. Be2 {[%emt 0:05:40]} e6 {[%emt 0:02:26] LiveBook: 5 Games A42: Modern Defence: Averbakh Variation} 6. f4 {[%emt 0:03:25]} Ne7 {[%emt 0:01:12]} 7. Nf3 {[%emt 0:00:28]} O-O {[%emt 0:00:29]} 8. O-O {[%emt 0:00:27]} c6 {[%emt 0:24:13]} 9. Be3 {[%emt 0:01:36]} d5 $146 {[%emt 0:02:34]} ({Predecessor:} 9... h6 10. e5 d5 11. cxd5 Nxd5 12. Nxd5 cxd5 13. Qd2 Re8 {1-0 (29) Becker,M (2381)-Birkenmaier,R (2125) Oberhausen 2007}) 10. cxd5 {[%emt 0:03:45]} exd5 {[%emt 0:00:48]} 11. e5 {[%emt 0:00:36]} b6 {[%emt 0:05:10]} 12. b4 {[%emt 0:03:19]} Bb7 {[%emt 0:02:23]} 13. Qb3 {[%emt 0:07:22]} Rb8 {[%emt 0:07:00]} 14. Qc2 {[%emt 0:08:07]} Re8 {[%emt 0:03:19]} 15. Bd3 {[%emt 0:07:45]} Nf8 {[%emt 0:03:03]} 16. g4 {[%emt 0:02:52]} Bh6 {[%emt 0:01:50]} 17. Qd2 {[%emt 0:07:21]} Bc8 {[%emt 0:03:21]} 18. h3 {[%emt 0:00:15]} Kh8 {[%emt 0:11:26]} 19. Ne2 {[%emt 0:06:09]} Bg7 {[%emt 0:02:32]} 20. Ng3 {[%emt 0:01:13]} f6 {[%emt 0:00:56]} 21. f5 {[%emt 0:05:37]} c5 {[%emt 0:05:11]} 22. e6 {[%emt 0:02:57]} c4 {[%emt 0:01:19]} 23. Bc2 {[%emt 0:00:38]} Ba6 {[%emt 0:04:24]} 24. Rfc1 {[%emt 0:05:21]} Rc8 {[%emt 0:00:29]} 25. Ba4 {[%emt 0:03:09]} b5 {[%emt 0:00:00]} 26. Bc2 {[%emt 0:00:14]} c3 {[%emt 0:00:38]} 27. Qf2 $18 {[%emt 0:00:53]} Qd6 {[%emt 0:04:13]} 28. a3 {[%emt 0:00:27]} Bb7 {[%emt 0:00:24]} 29. Ne2 {[%emt 0:01:34]} a5 {[%emt 0:00:01]} 30. Bf4 {[%emt 0:00:25]} Qb6 {[%emt 0:00:29]} 31. Bd3 {[%emt 0:03:12]} gxf5 {[%emt 0:05:47]} 32. gxf5 {[%emt 0:00:08]} axb4 {[%emt 0:01:21]} 33. axb4 {[%emt 0:00:13]} Nxf5 {[%emt 0:00:31]} 34. Bxf5 {[%emt 0:00:33]} Nxe6 {[%emt 0:00:00]} 35. Qh4 {[%emt 0:02:37]} Kg8 {[%emt 0:00:02]} 36. Qxh7+ {[%emt 0:02:22]} Kf8 {[%emt 0:00:01]} 37. Kh1 {[%emt 0:05:15]} Nxf4 {[%emt 0:02:44]} 38. Nxf4 {[%emt 0:00:17]} Rc7 {[%emt 0:00:49]} 39. Ng6+ {[%emt 0:00:39]} Kf7 {[%emt 0:00:03]} 40. Qh5 {[%emt 0:01:10]} Kg8 {[%emt 0:00:27]} 41. Re1 {[%emt 0:36:14]} Bc6 {[%emt 0:32:06]} 42. Be6+ {[%emt 0:03:37]} Rxe6 {[%emt 0:00:01]} 43. Rxe6 {[%emt 0:00:02]} Kf7 {[%emt 0:00:55]} 44. Nf4+ {[%emt 0:00:00]} Kf8 {[%emt 0:00:00]} 45. Ra8+ {[%emt 0:00:00]} Bxa8 {[%emt 0:00:00]} 1-0

[Event "18th Brasschaat Open 2018"]
[Site "Brasschaat"]
[Date "2018.08.25"]
[Round "8"]
[White "Vande Ginste, Michiel"]
[Black "De Block, Fabio"]
[Result "0-1"]
[ECO "B17"]
[WhiteElo "1762"]
[BlackElo "1956"]
[Annotator "NA RC"]
[PlyCount "92"]
[EventDate "2018.08.18"]
[EventType "swiss"]
[EventCountry "BEL"]
[SourceTitle "playchess.com"]
[Source "ChessBase"]
[SourceQuality "1"]
[TimeControl "40/5400+30:1800+30"]

1. e4 {[%emt 0:00:00]} c6 {[%emt 0:00:00]} 2. d4 {[%emt 0:00:00]} d5 {[%emt 0:00:00]} 3. Nc3 {[%emt 0:00:00]} dxe4 {[%emt 0:00:13]} 4. Nxe4 {[%emt 0:00:00]} Nd7 {[%emt 0:00:05]} 5. Nf3 {[%emt 0:00:00]} Ngf6 {[%emt 0:00:10]} 6. Nxf6+ {[%emt 0:00:00]} Nxf6 {[%emt 0:00:05]} 7. Ne5 {[%emt 0:00:00]} Bf5 {[%emt 0:01:55]} 8. c3 {[%emt 0:00:12]} e6 {[%emt 0:00:38] [#] LiveBook: 22 Games} (8... Nd5 $14) 9. g4 $1 {[%emt 0:00:06]} Qd5 {[%emt 0:06:52]} 10. Rg1 {[%emt 0:02:54]} Bg6 {[%emt 0:03:53]} 11. h4 {[%emt 0:02:50]} h5 {[%emt 0:04:35]} 12. Nxg6 {[%emt 0:01:12]} fxg6 {[%emt 0:05:19]} 13. Bg2 {[%emt 0:00:50]} Qd7 {[%emt 0:01:22]} 14. g5 {[%emt 0:00:35]} Nd5 $16 {[%emt 0:00:36]} 15. Qd3 {[%emt 0:01:58]} Ne7 {[%emt 0:01:05]} 16. Be4 {[%emt 0:03:51]} Nf5 {[%emt 0:00:30]} 17. Rh1 {[%emt 0:03:31]} O-O-O {[%emt 0:00:59]} 18. Bf4 {[%emt 0:04:11]} Bd6 {[%emt 0:02:31]} 19. Be3 {[%emt 0:02:00]} e5 {[%emt 0:09:21]} 20. d5 {[%emt 0:06:15]} c5 {[%emt 0:09:56]} 21. c4 {[%emt 0:08:41]} Rhf8 {[%emt 0:01:55]} 22. O-O-O {[%emt 0:02:54]} Kb8 {[%emt 0:04:43]} 23. Kb1 {[%emt 0:02:06]} Rc8 {[%emt 0:02:17]} 24. Bd2 {[%emt 0:25:35]} Ka8 {[%emt 0:11:51]} 25. Bc3 {[%emt 0:01:26]} b5 {[%emt 0:04:46]} 26. b3 {[%emt 0:00:25]} b4 {[%emt 0:00:16]} 27. Bb2 {[%emt 0:00:08]} a5 {[%emt 0:00:40]} 28. Rde1 {[%emt 0:06:42]} Rce8 {[%emt 0:03:40]} 29. Qd2 {[%emt 0:05:56]} a4 {[%emt 0:05:19]} 30. Bg2 {[%emt 0:06:29]} axb3 {[%emt 0:02:11]} 31. axb3 {[%emt 0:00:07]} Kb7 {[%emt 0:00:50]} 32. Re4 {[%emt 0:01:23]} Kb6 {[%emt 0:01:28]} 33. Rhe1 {[%emt 0:01:04]} Nd4 {[%emt 0:03:36]} 34. Bxd4 {[%emt 0:01:15]} cxd4 {[%emt 0:00:19]} 35. f4 {[%emt 0:03:53]} Ra8 {[%emt 0:04:28]} 36. fxe5 {[%emt 0:01:05]} Bc5 {[%emt 0:00:30]} 37. R1e2 {[%emt 0:06:33]} d3 {[%emt 0:00:47]} 38. Qxd3 {[%emt 0:01:53]} Qa7 {[%emt 0:00:05]} 39. Kc1 {[%emt 0:00:12]} Qa1+ {[%emt 0:01:15]} 40. Qb1 {[%emt 0:00:12]} Qc3+ {[%emt 0:00:10]} 41. Rc2 {[%emt 0:30:37]} Be3+ {[%emt 0:30:13]} 42. Rxe3 {[%emt 0:00:00]} Qxe3+ {[%emt 0:00:00]} 43. Rd2 {[%emt 0:00:00]} Qc3+ {[%emt 0:00:00]} 44. Rc2 {[%emt 0:00:00]} Qe1+ {[%emt 0:00:00]} 45. Kb2 {[%emt 0:00:00]} Qxe5+ {[%emt 0:00:00]} 46. Kc1 {[%emt 0:00:00]} Ra1 {[%emt 0:00:00]} 0-1